bitfinex-derivatives/quotes_ETHF0:USTF0_20241230
["timestamp","ask_amount","ask_price","bid_price","bid_amount"]
[1735533187409,4.5887,3400.1,3399.6,2.9408]
[1735533187410,3.50263,3399.7,3399.6,2.9408]
[1735533188300,3.2078,3399.7,3399.6,2.9408]
[1735533188803,3.50263,3399.7,3399.6,2.9408]
[1735533189613,5.80306185,3399.7,3399.6,2.9408]
[1735533191211,3.2078,3399.7,3399.6,2.9408]
[1735533192817,3.5026,3400.1,3399.7,0.29483]
[1735533193112,3.2078,3400.1,3400.0,3.2356]
[1735533193305,2.30043185,3400.2,3400.0,2.9408]
[1735533193507,2.30043185,3400.2,3400.1,3.8569]
[1735533194305,2.30043185,3400.2,3400.1,7.0647]
[1735533194707,3.2078,3400.6,3400.3,0.29477]
[1735533194911,3.2078,3400.6,3400.5,2.9408]
[1735533196704,3.50255,3400.6,3400.5,2.9408]
[1735533197917,3.2078,3400.6,3400.5,3.23556]
[1735533199417,2.30043185,3401.0,3400.5,2.9408]
[1735533199711,2.30043185,3401.0,3400.9,3.23553]
[1735533200116,2.30043185,3401.0,3400.9,2.9408]
[1735533200317,2.59515185,3401.0,3400.9,2.9408]
[1735533200517,3.74661342,3401.0,3400.9,2.9408]
[1735533200909,3.45189342,3401.0,3400.9,2.9408]
[1735533201317,3.74661342,3401.0,3400.9,2.9408]
[1735533201718,3.45189342,3401.0,3400.9,2.9408]
[1735533201919,0.29471,3401.1,3400.9,2.9408]
[1735533202109,0.29471,3401.1,3401.0,2.9408]
[1735533202312,5.80591697,3401.2,3401.0,2.9408]
[1735533202511,5.80591697,3401.2,3401.1,2.9408]
[1735533202707,5.51121697,3401.2,3401.1,2.9408]
[1735533203122,5.51121697,3401.2,3401.1,4.1799]
[1735533203511,2.30341697,3401.2,3401.1,4.1799]
[1735533203721,2.30341697,3401.2,3401.1,4.47461]
[1735533204018,2.30341697,3401.2,3401.1,4.1799]
[1735533204617,2.59809697,3401.4,3401.1,4.1799]
[1735533204817,2.59809697,3401.4,3401.1,1.2391]
[1735533205018,2.59809697,3401.4,3401.3,2.9408]
[1735533205622,2.30341697,3401.4,3401.3,2.9408]
[1735533205827,2.59809697,3401.5,3401.3,2.9408]
[1735533206019,2.59809697,3401.5,3401.4,2.9408]
[1735533206421,2.30341697,3401.5,3401.4,2.9408]
[1735533206926,2.30341697,3401.5,3401.4,3.23548]
[1735533207118,5.51121697,3401.6,3401.4,3.23548]
[1735533207319,2.30341697,3401.6,3401.5,2.9408]
[1735533208030,2.30341697,3401.6,3401.5,3.23547]
[1735533208722,0.29465,3401.8,3401.5,3.23547]
[1735533208929,2.95071697,3401.9,3401.8,0.29465]
[1735533209223,2.30341697,3401.9,3401.8,3.23545]
[1735533210631,0.2946,3402.4,3402.1,0.29461]
[1735533210828,0.2946,3402.4,3402.3,2.9408]
[1735533212427,3.50239,3402.5,3402.3,2.9408]
[1735533212631,3.50239,3402.5,3402.4,2.9408]
[1735533214630,3.50239,3402.5,3401.5,3.2078]
[1735533214631,3.2078,3402.5,3401.5,3.2078]
[1735533214836,0.29463,3402.1,3402.0,2.9408]
[1735533216229,0.29462,3402.2,3402.0,2.9408]
[1735533216426,3.2078,3402.5,3402.4,2.9408]
[1735533217538,3.50239,3402.5,3402.4,2.9408]
[1735533218431,3.50239,3402.5,3402.1,0.29462]
[1735533218629,3.50239,3402.5,3402.4,2.9408]
[1735533221741,3.2078,3402.5,3401.6,3.2078]
[1735533222039,0.29461,3402.2,3402.1,2.9408]
[1735533222637,1.56691,3402.2,3402.1,2.9408]
[1735533232242,1.2723,3402.2,3401.6,3.2078]
[1735533232443,0.29465,3401.8,3401.4,0.29468]
[1735533232641,3.50243,3402.0,3401.9,2.9408]
[1735533233847,3.50243,3402.0,3401.3,0.6239]
[1735533233848,5.56784893,3402.0,3401.3,0.6239]
[1735533234046,0.29464,3401.9,3401.8,2.9408]
[1735533235642,3.2078,3402.0,3401.8,2.9408]
[1735533235948,3.50244,3402.0,3401.9,2.9408]
[1735533236652,5.86248893,3402.0,3401.9,2.9408]
[1735533238449,8.1659059,3402.0,3401.9,2.9408]
[1735533238647,0.29469,3401.3,3401.2,3.814]
[1735533238847,0.2947,3401.2,3401.1,0.6154]
[1735533239147,0.2947,3401.2,3400.7,3.2078]
[1735533239148,3.50247,3401.5,3401.4,2.9408]
[1735533240354,0.29472,3401.0,3400.8,0.6154]
[1735533240657,0.2947,3401.2,3401.1,2.9408]
[1735533244356,2.59811697,3401.2,3401.1,2.9408]
[1735533244748,2.30341697,3401.2,3401.1,3.23551]
[1735533245350,2.30341697,3401.4,3401.1,2.9408]
[1735533245549,2.30341697,3401.4,3401.3,2.9408]
[1735533245755,2.30341697,3401.4,3401.3,3.23549]
[1735533246057,3.45189342,3401.6,3401.5,0.29467]
[1735533246357,3.45189342,3401.6,3401.5,3.23547]
[1735533246945,0.29465,3401.8,3401.5,2.9408]
[1735533247152,3.2078,3401.9,3401.7,2.9408]
[1735533247455,3.2078,3401.9,3401.8,2.9408]
[1735533247653,3.50244,3401.9,3401.8,2.9408]
[1735533250956,4.14394,3401.9,3401.8,2.9408]
[1735533252751,3.8493,3401.9,3401.8,2.9408]
[1735533256057,3.2078,3401.9,3401.8,3.23542]
[1735533256254,3.45189342,3402.1,3401.8,2.9408]
[1735533256561,3.45189342,3402.1,3402.0,2.9408]
[1735533257865,3.45189342,3402.1,3402.0,3.23541]
[1735533258056,3.45189342,3402.1,3402.0,3.50021]
[1735533258259,3.2078,3402.4,3402.1,0.2946]
[1735533258260,6.65969342,3402.4,3402.1,0.2946]
[1735533258455,6.65969342,3402.4,3402.3,2.9408]
[1735533258656,6.65969342,3402.4,3402.3,3.23538]
[1735533259059,3.45189342,3402.4,3402.3,3.23538]
[1735533259464,3.45189342,3402.7,3402.6,0.29455]
[1735533259858,3.45189342,3402.7,3402.6,3.23535]
[1735533260058,3.45189342,3402.7,3402.6,3.85825]
[1735533261366,0.6428,3402.9,3402.6,3.5637]
[1735533261666,0.6428,3402.9,3402.8,2.9408]
[1735533262465,3.74641342,3403.1,3402.8,3.23534]
[1735533262466,3.45189342,3403.1,3402.8,3.23534]
[1735533262665,3.45189342,3403.1,3403.0,2.9408]
[1735533262861,3.45189342,3403.1,3403.0,3.23532]
[1735533263069,3.45189342,3403.2,3403.0,3.23532]
[1735533263256,3.45189342,3403.2,3403.0,0.29452]
[1735533263455,3.45189342,3403.2,3403.1,2.9408]
[1735533264165,0.92989,3403.4,3403.1,2.9408]
[1735533264367,0.92989,3403.4,3403.3,2.9408]
[1735533268270,0.6354,3403.4,3403.3,2.9408]
[1735533271460,0.92989,3403.4,3403.3,2.9408]
[1735533272268,0.6354,3403.4,3403.3,2.9408]
[1735533275371,0.6289,3403.5,3403.3,2.9408]
[1735533275570,3.2078,3403.7,3403.4,3.23528]
[1735533275874,3.2078,3403.7,3403.6,2.9408]
[1735533276376,3.50225,3403.7,3403.6,2.9408]
[1735533277670,3.2078,3403.7,3403.6,2.9408]
[1735533277968,3.50225,3403.7,3403.6,2.9408]
[1735533278180,0.29445,3403.7,3403.6,2.9408]
[1735533279671,0.93265,3403.8,3403.6,2.9408]
[1735533279871,0.93265,3403.8,3403.7,2.9408]
[1735533281880,0.6382,3403.8,3403.7,3.23525]
[1735533283069,0.6382,3403.8,3403.7,2.9408]
[1735533283275,0.6382,3403.8,3403.7,3.23525]
[1735533284175,0.6382,3403.8,3403.7,2.9408]
[1735533284382,0.6382,3403.8,3403.7,3.23525]
[1735533284877,0.6382,3403.8,3403.7,2.9408]
[1735533285276,0.93265,3403.8,3403.7,2.9408]
[1735533285781,0.6382,3403.8,3403.7,3.23525]
[1735533286281,0.93265,3403.8,3403.7,2.9408]
[1735533286780,0.6382,3403.8,3403.7,3.23525]
[1735533287179,0.93265,3403.8,3403.7,2.9408]
[1735533287971,0.6382,3403.8,3403.7,2.9408]
[1735533289282,0.6382,3403.8,3403.7,3.23525]
[1735533290083,0.6382,3403.8,3403.7,2.9408]
[1735533290284,0.93265,3403.8,3403.7,2.9408]
[1735533294085,0.6382,3403.8,3403.7,2.9408]
[1735533294278,0.93265,3403.8,3403.7,2.9408]
[1735533294789,0.2944,3404.4,3403.9,0.29444]
[1735533295087,0.9284,3404.4,3404.3,2.9408]
[1735533304393,0.29446,3403.7,3403.5,7.81156394]
[1735533304891,0.29446,3403.7,3403.6,5.59356394]
[1735533305096,0.6224,3404.0,3403.6,5.59356394]
[1735533305292,0.29445,3403.8,3403.6,4.60376394]
[1735533305796,0.29444,3403.9,3403.7,0.9898]
[1735533306091,0.29444,3403.9,3403.6,4.60376394]
[1735533306092,3.2078,3404.5,3403.9,0.9898]
[1735533306288,3.45189342,3404.2,3403.9,3.2078]
[1735533306482,3.45189342,3404.2,3404.1,2.65446893]
[1735533306687,3.45189342,3404.2,3404.1,3.64426893]
[1735533307092,2.47599342,3404.2,3404.1,3.64426893]
[1735533307287,4.59351807,3404.4,3404.1,7.36004893]
[1735533307495,3.37291807,3404.4,3404.3,3.5022]
[1735533307686,3.37291807,3404.4,3404.3,4.6902]
[1735533307887,3.37291807,3404.4,3404.3,25.5902]
[1735533308284,0.29432,3405.3,3405.0,0.29434]
[1735533308486,0.29432,3405.3,3405.2,3.2078]
[1735533308692,0.29432,3405.3,3405.2,3.6678455]
[1735533308889,5.74189759,3405.4,3405.2,3.6678455]
[1735533309096,5.74189759,3405.4,3405.3,0.4600455]
[1735533309298,6.03620759,3405.4,3405.3,0.4600455]
[1735533309497,5.74189759,3405.4,3405.3,0.7543655]
[1735533309795,5.74189759,3405.4,3405.2,3.2078]
[1735533309999,5.74189759,3405.4,3405.3,0.29432]
[1735533310394,0.5882,3406.0,3405.2,3.2078]
[1735533310592,0.29427,3405.9,3405.6,3.2078]
[1735533311099,0.29426,3405.9,3405.6,3.2078]
[1735533311595,0.29428,3405.7,3405.6,3.2078]
[1735533311798,2.94824893,3406.0,3405.1,3.2078]
[1735533311799,0.29431,3405.4,3405.1,3.2078]
[1735533312098,0.6136,3405.3,3405.1,3.2078]
[1735533313598,0.90792,3405.3,3405.1,3.2078]
[1735533316896,0.6136,3405.3,3405.1,3.2078]
[1735533318103,0.29432,3405.2,3405.1,3.2078]
[1735533319803,0.29436,3404.8,3404.7,3.2078]
[1735533320202,0.29439,3404.4,3404.3,3.2078]
[1735533320404,5.56784893,3404.8,3404.0,4.61551068]
[1735533320405,0.29441,3404.3,3404.0,4.61551068]
[1735533320802,0.6065,3404.7,3404.0,4.61551068]
[1735533321101,0.29442,3404.2,3403.8,3.2078]
[1735533321500,0.29442,3404.2,3403.8,3.50225]
[1735533322599,0.29444,3403.9,3403.8,3.2078]
[1735533322811,0.29443,3404.0,3403.8,3.2078]
[1735533323011,0.29442,3404.1,3403.8,3.2078]
[1735533323902,1.1775,3404.6,3403.8,3.2078]
[1735533324103,0.29443,3404.0,3403.8,3.2078]
[1735533324303,0.29442,3404.1,3403.8,3.2078]
[1735533324801,0.29443,3404.0,3403.8,3.2078]
[1735533326715,0.29442,3404.2,3403.9,0.29444]
[1735533327009,0.2944,3404.4,3404.1,0.29442]
[1735533327217,0.29442,3404.2,3403.9,0.29443]
[1735533327514,0.29443,3404.1,3403.8,3.50224]
[1735533327706,0.88753,3404.1,3403.8,3.50224]
[1735533328109,0.29443,3404.0,3403.8,3.2078]
[1735533331722,0.29444,3403.9,3403.8,3.2078]
[1735533332523,0.86734,3403.9,3403.8,3.2078]
[1735533334923,0.5729,3403.9,3403.4,3.2078]
[1735533335129,0.29447,3403.5,3403.4,3.2078]
[1735533335424,0.5729,3403.9,3403.4,3.2078]
[1735533335725,0.5931,3404.1,3403.9,0.29443]
[1735533336224,0.5931,3404.1,3403.5,0.622]
[1735533336527,0.29444,3403.9,3403.6,0.29446]
[1735533336826,0.91445,3403.8,3403.6,0.29446]
[1735533337022,1.50565,3403.8,3403.6,0.29446]
[1735533337225,0.29445,3403.7,3403.5,0.29447]
[1735533337629,1.2112,3403.8,3403.4,4.11318]
[1735533337833,0.29446,3403.7,3403.5,0.29447]
[1735533338825,1.2112,3403.8,3403.4,3.8187]
[1735533339029,1.50565,3403.8,3403.5,0.29446]
[1735533339526,1.2112,3403.8,3403.5,0.29446]
[1735533339727,1.50565,3403.8,3403.5,0.29447]
[1735533340637,0.29446,3403.7,3403.4,4.11318]
[1735533340828,1.2112,3403.8,3403.4,3.8187]
[1735533341026,1.2112,3403.8,3403.5,0.29447]
[1735533341227,1.50565,3403.8,3403.5,0.29447]
[1735533341930,0.29446,3403.7,3403.4,4.11318]
[1735533342131,1.50565,3403.8,3403.5,0.29447]
[1735533342730,0.29447,3403.5,3403.4,3.2078]
[1735533343035,0.29448,3403.4,3403.3,0.17584187]
[1735533343234,0.86638,3403.4,3403.3,0.17584187]
[1735533343730,0.5719,3403.4,3403.0,7.82331068]
[1735533343933,0.2945,3403.2,3403.0,8.11782068]
[1735533344826,0.2945,3403.2,3403.0,3.50231]
[1735533345534,0.5719,3403.4,3403.0,3.50231]
[1735533345731,0.5719,3403.4,3403.0,3.2078]
[1735533346031,0.5719,3403.4,3403.3,0.29449]
[1735533348436,0.5719,3403.4,3403.0,3.2078]
[1735533348637,0.29449,3403.3,3403.0,3.2078]
[1735533348840,0.29449,3403.3,3403.1,0.2945]
[1735533349340,0.29449,3403.3,3403.0,3.2078]
[1735533349731,0.29449,3403.3,3403.1,0.29451]
[1735533350430,0.5719,3403.4,3403.0,3.50231]
[1735533350431,0.2945,3403.2,3403.0,3.50231]
[1735533350632,0.6071,3403.2,3403.0,3.50231]
[1735533351036,1.2112,3403.2,3403.0,3.50231]
[1735533351943,0.29451,3403.1,3403.0,3.2078]
[1735533354535,0.29453,3402.9,3402.6,0.29455]
[1735533354729,0.6034,3402.8,3402.6,0.29455]
[1735533355332,0.6034,3402.8,3402.5,3.2078]
[1735533355543,0.89794,3402.8,3402.6,0.29455]
[1735533358743,0.89794,3402.8,3402.5,3.2078]
[1735533358941,0.29455,3402.6,3402.5,3.2078]
[1735533359535,0.90515,3402.6,3402.5,3.2078]
[1735533361646,0.90515,3402.6,3401.9,5.76351068]
[1735533361647,0.29459,3402.1,3402.0,3.2078]
[1735533361839,0.2946,3402.0,3401.9,4.61551068]
[1735533362045,0.29462,3401.9,3401.7,4.61551068]
[1735533362246,0.29462,3401.8,3401.7,4.61551068]
[1735533363652,0.29462,3401.8,3401.6,3.2078]
[1735533364351,0.6273,3401.9,3401.6,3.2078]
[1735533364550,0.92191,3401.9,3401.6,3.50243]
[1735533366351,0.6273,3401.9,3401.7,0.29463]
[1735533366648,0.5843,3402.0,3401.9,0.29461]
[1735533367044,0.5843,3402.0,3401.8,0.29461]
[1735533367240,0.87891,3402.0,3401.7,0.29463]
[1735533367554,0.87891,3402.0,3401.6,3.50244]
[1735533367555,0.5971,3401.9,3401.6,3.50244]
[1735533367850,0.86692,3401.8,3401.6,3.2078]
[1735533368050,0.5723,3401.8,3401.6,3.2078]
[1735533368251,0.86692,3401.8,3401.6,3.2078]
[1735533369049,0.5723,3401.8,3401.7,0.29463]
[1735533370752,0.5971,3401.9,3401.6,3.2078]
[1735533370753,0.5843,3402.0,3401.9,0.29461]
[1735533372655,2.29764825,3403.1,3401.9,6.187]
[1735533372859,2.29764825,3403.1,3402.7,3.2078]
[1735533373151,2.29764825,3403.1,3402.8,0.5927]
[1735533373349,2.29764825,3403.1,3402.9,0.29452]
[1735533373752,0.29451,3403.2,3402.9,0.29452]
[1735533374550,1.7962,3403.4,3402.9,0.29452]
[1735533374752,0.29451,3403.1,3402.8,0.88723]
[1735533374951,0.29451,3403.1,3402.8,0.29453]
[1735533375454,1.7962,3403.4,3402.7,3.2078]
[1735533375455,0.2945,3403.2,3402.9,0.29452]
[1735533375655,0.29451,3403.1,3402.7,3.2078]
[1735533375856,0.29451,3403.1,3402.8,0.29453]
[1735533376052,0.2945,3403.2,3402.9,0.29452]
[1735533376253,1.7962,3403.4,3402.7,3.2078]
[1735533376656,0.29451,3403.1,3402.8,0.29453]
[1735533377546,0.29451,3403.1,3402.9,0.29452]
[1735533377752,0.2945,3403.2,3402.9,0.29452]
[1735533378158,1.7962,3403.4,3402.7,3.2078]
[1735533378356,0.2945,3403.3,3402.9,0.29452]
[1735533378555,3.2078,3403.5,3402.8,2.94494893]
[1735533378759,0.29446,3403.6,3403.2,0.2945]
[1735533379052,0.29446,3403.6,3403.1,3.2078]
[1735533379254,1.2207,3403.7,3403.2,0.2945]
[1735533379458,0.29447,3403.5,3403.2,0.2945]
[1735533379762,1.2207,3403.7,3403.2,0.2945]
[1735533379763,0.29447,3403.6,3403.2,0.2945]
[1735533380162,0.29447,3403.5,3403.2,0.2945]
[1735533380464,0.29447,3403.5,3403.1,3.2078]
[1735533380656,0.29447,3403.5,3403.2,0.2945]
[1735533381760,2.36004893,3403.6,3402.8,0.5849]
[1735533381961,1.2207,3403.7,3403.1,3.2078]
[1735533382265,0.29448,3403.4,3403.1,3.5023]
[1735533382662,0.29446,3403.6,3403.3,0.29448]
[1735533383764,0.29446,3403.6,3403.1,3.2078]
[1735533383964,0.29446,3403.6,3403.2,0.2945]
[1735533384356,0.29446,3403.6,3403.1,3.2078]
[1735533384557,1.2207,3403.7,3403.1,3.2078]
[1735533384753,1.2207,3403.7,3403.4,0.29447]
[1735533385156,0.6015,3403.7,3403.6,0.29446]
[1735533385357,3.8018,3403.9,3403.7,0.29445]
[1735533385765,3.8018,3403.9,3403.1,5.56784893]
[1735533385966,3.8018,3403.9,3403.6,0.29446]
[1735533386170,3.8018,3403.9,3403.1,5.56784893]
[1735533386366,0.594,3403.9,3403.8,0.29445]
[1735533386566,0.594,3403.9,3403.7,3.2078]
[1735533386765,0.594,3403.9,3403.5,0.29447]
[1735533387063,0.594,3403.9,3403.2,3.2078]
[1735533387264,0.594,3403.9,3403.3,0.5955]
[1735533387460,0.594,3403.9,3403.8,0.29445]
[1735533387871,0.594,3403.9,3403.7,0.29445]
[1735533388970,0.594,3403.9,3403.3,0.5955]
[1735533389171,0.88844,3403.9,3403.6,0.29446]
[1735533389565,0.594,3403.9,3403.3,0.5955]
[1735533389774,0.594,3403.9,3403.7,0.29446]
[1735533390660,0.594,3403.9,3403.3,0.5955]
[1735533390867,0.88844,3403.9,3403.6,0.29446]
[1735533392371,0.29446,3403.7,3403.4,0.29448]
[1735533392575,2.95404893,3403.9,3403.2,3.2078]
[1735533393274,0.29448,3403.5,3403.2,3.5023]
[1735533393476,2.95404893,3403.9,3403.2,3.2078]
[1735533393477,0.29449,3403.3,3403.2,3.2078]
[1735533393972,1.52079,3403.3,3403.2,3.2078]
[1735533396568,1.2263,3403.3,3402.5,2.36004893]
[1735533396769,0.29453,3402.9,3402.6,0.29455]
[1735533397172,0.90884,3402.8,3402.4,1.2204]
[1735533397366,0.90884,3402.8,3402.5,0.29455]
[1735533397573,0.90884,3402.8,3402.3,3.2078]
[1735533397574,0.29455,3402.6,3402.3,3.2078]
[1735533397766,1.2345,3402.5,3402.3,3.2078]
[1735533397969,1.52907,3402.5,3402.3,3.2078]
[1735533398574,1.2345,3402.5,3402.3,3.2078]
[1735533398771,1.52907,3402.5,3402.3,3.2078]
[1735533399467,0.6143,3402.8,3402.3,3.2078]
[1735533399675,0.6143,3402.8,3402.4,0.5751]
[1735533400178,0.6143,3402.8,3402.6,0.29455]
[1735533400781,0.6143,3402.8,3402.7,15.9]
[1735533401580,0.6073,3402.9,3402.7,15.9]
[1735533401775,0.6073,3402.9,3402.8,0.29453]
[1735533401976,0.6283,3403.0,3402.9,0.29453]
[1735533402177,3.2078,3403.1,3402.9,0.29453]
[1735533402381,3.50231,3403.1,3402.9,0.29453]
[1735533402881,3.2078,3403.1,3402.9,0.29453]
[1735533403978,0.29452,3403.0,3402.7,0.29454]
[1735533404280,0.29452,3403.0,3402.8,0.29453]
[1735533404479,3.50231,3403.1,3402.8,0.29453]
[1735533404983,3.50231,3403.1,3402.6,15.9]
[1735533405279,3.50231,3403.1,3402.8,0.29453]
[1735533406075,3.2078,3403.1,3402.6,15.9]
[1735533406375,3.2078,3403.1,3402.9,0.29452]
[1735533406884,0.5747,3403.5,3403.4,0.29448]
[1735533407474,0.86917,3403.5,3403.1,2.36004893]
[1735533407684,0.5747,3403.5,3403.3,0.29448]
[1735533407984,0.5747,3403.5,3403.0,0.5779]
[1735533407985,0.5747,3403.5,3403.4,0.29448]
[1735533412081,3.2078,3404.1,3403.3,3.2078]
[1735533412284,3.2078,3404.1,3404.0,0.29443]
[1735533412671,1.7856,3404.2,3403.5,3.8301]
[1735533412871,1.7856,3404.2,3404.0,0.29442]
[1735533413085,1.7856,3404.2,3403.5,3.8301]
[1735533413277,2.08002,3404.2,3403.9,0.29443]
[1735533413581,1.7856,3404.2,3403.5,3.8301]
[1735533413984,0.29442,3404.1,3403.8,0.29445]
[1735533414889,0.29442,3404.1,3403.7,0.29445]
[1735533415181,0.29442,3404.1,3403.8,0.29445]
[1735533415580,1.7856,3404.2,3403.5,3.8301]
[1735533415782,0.29443,3404.1,3403.7,0.29445]
[1735533416081,0.29445,3403.9,3403.5,3.50227]
[1735533416483,1.7856,3404.2,3403.5,3.2078]
[1735533416684,0.29443,3404.1,3403.6,0.29447]
[1735533416884,0.29443,3404.1,3403.8,0.29444]
[1735533417578,0.29443,3404.0,3403.7,0.29445]
[1735533420481,2.29964163,3404.1,3403.6,0.6207]
[1735533420679,2.59407163,3404.1,3403.8,0.29445]
[1735533420879,2.29964163,3404.1,3403.7,0.29445]
[1735533421078,0.29444,3403.9,3403.7,0.29445]
[1735533421774,0.29443,3404.0,3403.7,0.29445]
[1735533422077,0.29444,3403.9,3403.6,0.29446]
[1735533422487,0.29445,3403.8,3403.6,0.29446]
[1735533422783,2.29964163,3404.1,3403.4,7.81903288]
[1735533422988,0.6019,3403.7,3403.4,7.81903288]
[1735533423189,1.48657,3403.6,3403.4,7.81903288]
[1735533423788,0.29447,3403.5,3403.4,3.2078]
[1735533424086,0.29448,3403.4,3403.3,4.61123288]
[1735533424880,0.29448,3403.4,3403.3,1.75323288]
[1735533425082,2.29964163,3403.4,3402.8,1.75323288]
[1735533425281,2.29964163,3403.4,3402.8,4.96103288]
[1735533425484,2.29964163,3403.4,3403.3,0.29449]
[1735533425690,2.29964163,3403.4,3403.3,3.50229]
[1735533426294,2.29964163,3403.4,3403.3,8.50229]
[1735533426592,0.39494163,3403.9,3403.8,0.29445]
[1735533426792,0.39494163,3403.9,3403.8,3.50225]
[1735533427391,0.39494163,3403.9,3403.8,19.40225]
[1735533427591,3.44946244,3404.0,3403.9,0.29444]
[1735533428095,0.2944,3404.4,3404.0,0.29442]
[1735533428495,1.2272,3404.5,3403.8,3.2078]
[1735533428795,0.2944,3404.4,3404.1,0.29442]
[1735533429296,1.2272,3404.5,3403.8,3.2078]
[1735533429596,1.2272,3404.5,3404.3,0.2944]
[1735533429793,1.2272,3404.5,3404.2,3.2078]
[1735533430294,1.2272,3404.5,3404.2,3.50221]
[1735533430895,1.52159,3404.5,3404.2,3.50221]
[1735533431091,1.2272,3404.5,3404.2,3.2078]
[1735533431594,0.2944,3404.4,3404.2,3.2078]
[1735533432392,1.2272,3404.5,3404.2,3.2078]
[1735533432593,0.2944,3404.4,3403.9,0.29444]
[1735533432799,0.2944,3404.4,3404.0,0.29443]
[1735533433292,1.52159,3404.5,3404.1,0.29442]
[1735533433898,1.2272,3404.5,3403.8,3.2078]
[1735533434098,0.2944,3404.4,3404.1,0.29442]
[1735533434597,1.2272,3404.5,3404.1,0.29442]
[1735533434598,1.52159,3404.5,3404.1,0.29442]
[1735533434798,1.2272,3404.5,3403.8,3.2078]
[1735533435002,1.52159,3404.5,3404.1,0.29441]
[1735533435387,0.2944,3404.4,3404.1,0.29441]
[1735533436092,0.2944,3404.4,3404.0,0.29442]
[1735533439601,0.29441,3404.3,3404.0,0.29442]
[1735533439801,2.36004893,3404.4,3403.8,3.2078]
[1735533440108,2.36004893,3404.4,3403.8,3.50225]
[1735533440403,0.29442,3404.2,3403.9,0.29444]
[1735533440609,2.36004893,3404.4,3403.8,3.2078]
[1735533440798,2.65444893,3404.4,3404.1,0.29442]
[1735533441200,2.36004893,3404.4,3403.9,0.29444]
[1735533441393,2.36004893,3404.4,3403.8,3.2078]
[1735533441394,2.65444893,3404.4,3404.1,0.29442]
[1735533442108,2.36004893,3404.4,3403.8,3.2078]
[1735533442494,0.29441,3404.3,3404.0,0.29443]
[1735533444506,2.36004893,3404.4,3403.8,3.2078]
[1735533444706,0.29442,3404.2,3403.9,0.29443]
[1735533444905,0.29442,3404.2,3403.8,3.2078]
[1735533445206,0.29442,3404.2,3404.0,0.29443]
[1735533445706,0.29442,3404.2,3403.8,3.2078]
[1735533445913,2.36004893,3404.4,3403.8,3.50224]
[1735533446104,0.29442,3404.2,3403.9,0.29444]
[1735533446303,0.29444,3403.9,3403.8,3.2078]
[1735533447101,0.86514,3403.9,3403.8,3.2078]
[1735533447508,0.5707,3403.9,3403.8,3.2078]
[1735533448009,0.86514,3403.9,3403.8,3.2078]
[1735533448211,2.36004893,3404.4,3403.8,3.2078]
[1735533448413,2.65444893,3404.4,3403.8,3.2078]
[1735533448713,2.65444893,3404.4,3404.1,0.29442]
[1735533448909,3.44946244,3404.2,3403.9,0.5947]
[1735533449210,0.29443,3404.0,3403.8,3.50225]
[1735533449410,0.6248,3403.9,3403.8,0.29445]
[1735533449710,1.2121,3403.9,3403.8,0.29445]
[1735533450406,1.2121,3403.9,3403.4,10.74864933]
[1735533450713,0.6112,3403.8,3403.6,0.29446]
[1735533451013,0.6112,3403.8,3403.4,10.74864933]
[1735533451014,2.97124893,3403.8,3403.4,10.12464933]
[1735533451220,0.29447,3403.5,3403.4,10.12464933]
[1735533451912,2.65451893,3403.5,3403.4,10.12464933]
[1735533452917,2.65451893,3403.5,3403.4,6.91684933]
[1735533452918,5.86231893,3403.5,3403.4,6.91684933]
[1735533453415,0.29451,3403.1,3402.9,6.91684933]
[1735533453607,0.6264,3403.0,3402.9,7.21137933]
[1735533454516,0.6076,3403.4,3402.9,11.22543651]
[1735533454712,0.29451,3403.1,3402.9,11.22543651]
[1735533455111,0.89471,3403.1,3402.9,11.22543651]
[1735533455419,0.29452,3403.0,3402.9,11.22543651]
[1735533455918,0.29453,3402.8,3402.7,6.91684933]
[1735533456715,0.6137,3402.9,3402.7,6.91684933]
[1735533456916,0.6137,3402.9,3402.7,7.21138933]
[1735533457117,0.6137,3402.9,3402.7,0.29454]
[1735533457318,4.10251,3403.1,3402.8,0.29453]
[1735533457514,4.71621,3403.1,3402.8,0.29453]
[1735533458519,4.4217,3403.1,3402.4,6.91684933]
[1735533458818,0.29455,3402.7,3402.4,7.21141933]
[1735533459413,1.2419,3402.6,3402.4,7.21141933]
[1735533459712,0.29453,3402.9,3402.6,0.29455]
[1735533460719,1.2419,3403.0,3402.9,0.29453]
[1735533460912,3.2078,3403.1,3402.9,0.29453]
[1735533461815,3.50231,3403.1,3402.8,0.29453]
[1735533462120,3.2078,3403.1,3402.8,0.29453]
[1735533462316,3.2078,3403.1,3402.9,0.29453]
[1735533464223,3.2078,3403.1,3402.3,0.6006]
[1735533464518,3.50231,3403.1,3402.8,0.29453]
[1735533464718,3.50231,3403.1,3402.3,0.6006]
[1735533465020,3.50231,3403.1,3402.8,0.29453]
[1735533465218,3.2078,3403.1,3402.9,0.29452]
[1735533465622,3.2078,3403.1,3403.0,0.29452]
[1735533465922,3.44946244,3403.5,3403.4,0.29448]
[1735533467115,3.2078,3403.6,3403.2,0.29449]
[1735533467315,0.87938,3403.5,3403.2,0.29449]
[1735533467718,2.94494893,3403.5,3403.0,3.2078]
[1735533468020,0.2945,3403.3,3403.0,0.29451]
[1735533468224,0.6351,3403.2,3403.0,0.29451]
[1735533469124,0.6351,3403.2,3403.0,0.29452]
[1735533469424,0.6351,3403.2,3403.1,0.29451]
[1735533471323,0.2945,3403.3,3403.0,0.29451]
[1735533471526,0.8997,3403.3,3402.9,3.2078]
[1735533471721,0.8997,3403.3,3403.0,0.29452]
[1735533472029,0.8997,3403.3,3403.1,0.29451]
[1735533472621,0.8997,3403.3,3402.9,3.2078]